[Event "WSTCC-50 2024"]
[Site "Krakow"]
[Date "2024.07.02"]
[Round "1.1"]
[White "Ehlvest, Jaan"]
[Black "Lima, Darcy"]
[Result "1/2-1/2"]
[ECO "C50"]
[WhiteElo "2528"]
[BlackElo "2392"]
[Annotator "RC"]
[PlyCount "126"]
[EventDate "2024.07.01"]
[EventType "team-tourn"]
[EventCountry "POL"]
[SourceTitle "playchess.com"]
[Source "ChessBase"]
[SourceQuality "1"]
[TimeControl "40/5400+30:1800+30"]

1. e4 {[%emt 0:00:05]} e5 {[%emt 0:00:55]} 2. Nf3 {[%emt 0:00:07]} Nc6 {[%emt 0:00:02]} 3. Bc4 {[%emt 0:00:11]} d6 {[%emt 0:00:22]} 4. d3 {[%emt 0:02:45]} Na5 {[%emt 0:00:56]} 5. Bd5 {[%emt 0:02:56]} c6 {[%emt 0:01:08]} 6. Bxf7+ {[%emt 0:00:57]} Kxf7 {[%emt 0:00:04]} 7. Ng5+ {[%emt 0:02:46]} Ke8 {[%emt 0:02:23]} 8. b4 {[%emt 0:00:15]} Be7 {[%emt 0:08:45]} 9. bxa5 {[%emt 0:13:12]} Qxa5+ {[%emt 0:02:01]} 10. Nd2 {[%emt 0:05:39]} Nf6 {[%emt 0:14:40]} 11. O-O {[%emt 0:05:20]} Qa4 {[%emt 0:00:04]} 12. Nc4 {[%emt 0:04:36]} h6 {[%emt 0:01:11]} 13. Nf3 {[%emt 0:01:02]} Be6 {[%emt 0:01:38]} 14. Ne3 {[%emt 0:02:12]} Kd7 {[%emt 0:13:25]} 15. d4 {[%emt 0:08:57]} Nxe4 {[%emt 0:00:34]} 16. dxe5 {[%emt 0:02:04]} Rad8 {[%emt 0:02:46]} 17. Bb2 {[%emt 0:09:20]} Kc8 {[%emt 0:04:58]} 18. Qd4 {[%emt 0:03:39]} Nc5 {[%emt 0:14:07]} 19. exd6 {[%emt 0:03:47]} Bxd6 {[%emt 0:00:48]} 20. Qxa4 {[%emt 0:08:45]} Nxa4 {[%emt 0:00:06]} 21. Bxg7 {[%emt 0:00:06]} Rh7 {[%emt 0:03:23]} 22. Bf6 {[%emt 0:00:43]} Rf8 {[%emt 0:02:26]} 23. Be5 {[%emt 0:02:10]} Bb4 {[%emt 0:01:06]} 24. c4 {[%emt 0:02:45]} Rd7 {[%emt 0:01:11]} 25. Rfd1 {[%emt 0:04:54]} Rfd8 {[%emt 0:03:22]} 26. Rxd7 {[%emt 0:02:04]} Rxd7 {[%emt 0:00:05]} 27. h4 {[%emt 0:00:39]} Bc5 {[%emt 0:01:25]} 28. Bf4 {[%emt 0:02:20]} h5 {[%emt 0:00:02]} 29. Ng5 {[%emt 0:01:39]} Bxc4 {[%emt 0:07:11]} 30. Nxc4 {[%emt 0:02:51]} Rd4 {[%emt 0:00:06]} 31. Ne6 {[%emt 0:03:51]} Rxc4 {[%emt 0:00:15]} 32. Rd1 {[%emt 0:00:26]} Bb6 {[%emt 0:01:15]} 33. Be3 {[%emt 0:00:33]} Nc3 {[%emt 0:01:28]} 34. Rd6 {[%emt 0:00:04]} Nb5 {[%emt 0:03:05]} 35. Rd3 {[%emt 0:00:55]} Bc7 {[%emt 0:03:32]} 36. g3 {[%emt 0:00:47]} Ra4 {[%emt 0:02:33]} 37. Ng7 {[%emt 0:01:36]} Rxa2 {[%emt 0:00:10]} 38. Nxh5 {[%emt 0:00:04]} a5 {[%emt 0:00:06]} 39. g4 {[%emt 0:01:41]} a4 {[%emt 0:02:39]} 40. g5 {[%emt 0:00:11]} a3 {[%emt 0:03:23]} 41. g6 {[%emt 0:08:13]} Be5 {[%emt 0:04:15]} 42. Bb6 {[%emt 0:08:20]} Nc7 {[%emt 0:01:00]} 43. Bxc7 {[%emt 0:01:53]} Kxc7 {[%emt 0:06:13]} 44. g7 {[%emt 0:00:08]} Bxg7 {[%emt 0:00:45]} 45. Nxg7 {[%emt 0:00:03]} b5 {[%emt 0:04:36]} 46. h5 {[%emt 0:03:39]} b4 {[%emt 0:06:15]} 47. Ne6+ {[%emt 0:01:06]} Kb6 {[%emt 0:00:18]} 48. h6 {[%emt 0:00:21]} Rb2 {[%emt 0:06:19]} 49. h7 {[%emt 0:08:04]} a2 {[%emt 0:00:07]} 50. Rd1 {[%emt 0:00:16]} Rb1 {[%emt 0:00:05]} 51. h8=Q {[%emt 0:00:04]} Rxd1+ {[%emt 0:00:05]} 52. Kg2 {[%emt 0:00:06]} a1=Q {[%emt 0:00:09]} 53. Qb8+ {[%emt 0:00:08]} Ka5 {[%emt 0:00:11]} 54. Qa7+ {[%emt 0:00:19]} Kb5 {[%emt 0:00:03]} 55. Qc5+ {[%emt 0:00:12]} Ka4 {[%emt 0:00:20]} 56. Qxc6+ {[%emt 0:00:18]} Ka3 {[%emt 0:00:48]} 57. Qa6+ {[%emt 0:00:07]} Kb2 {[%emt 0:02:30]} 58. Qe2+ {[%emt 0:00:17]} Kc3 {[%emt 0:00:48]} 59. Qe3+ {[%emt 0:00:55]} Kc4 {[%emt 0:00:31]} 60. Qe4+ {[%emt 0:02:20]} Kc3 {[%emt 0:01:31]} 61. Qf3+ {[%emt 0:00:15]} Kc2 {[%emt 0:00:35]} 62. Qe4+ {[%emt 0:00:29]} Kc3 {[%emt 0:01:59]} 63. Qf3+ {[%emt 0:00:16]} Kc2 {[%emt 0:01:16]} 1/2-1/2

[Event "WSTCC-50 2024"]
[Site "Krakow"]
[Date "2024.07.02"]
[Round "1.1"]
[White "Sokolin, Leonid"]
[Black "Tsiganova, Monika"]
[Result "1/2-1/2"]
[ECO "B51"]
[WhiteElo "2454"]
[BlackElo "1999"]
[Annotator "TA"]
[PlyCount "119"]
[EventDate "2024.07.01"]
[EventType "team-tourn"]
[EventCountry "POL"]
[SourceTitle "playchess.com"]
[Source "ChessBase"]
[SourceQuality "1"]
[TimeControl "40/5400+30:1800+30"]

{[%evp 9,119,0,0,9,22,20,31,7,8,22,20,22,31,7,13,14,70,54,79,71,71,72,65,92,165,158,164,176,172,174,160,140,127,134,129,149,146,147,147,102,97,107,114,84,87,55,50,58,60,48,56,55,50,53,54,38,32,32,32,36,39,30,30,18,18,18,18,18,18,18,18,18,18,18,30,18,18,18,13,14,13,10,10,10,10,10,10,10,10,10,10,10,30,22,22,22,32,22,22,22,28,29,36,22,22,22,22,22,22,22,22,22]} 1. e4 {[%emt 0:00:05]} c5 {[%emt 0:00:21]} 2. Nf3 {[%emt 0:00:19]} d6 {[%emt 0:00:09]} 3. Bb5+ {[%emt 0:00:09]} Nd7 {[%emt 0:02:10]} 4. a4 {[%emt 0:00:29]} Ngf6 {[%emt 0:01:01]} 5. Nc3 {[%emt 0:00:04]} e6 {[%emt 0:01:01]} 6. O-O {[%emt 0:00:50]} Be7 {[%emt 0:00:33]} 7. d4 {[%emt 0:01:29]} cxd4 {[%emt 0:00:11]} 8. Qxd4 {[%emt 0:00:03] White is slightly better.} O-O {[%emt 0:00:42]} 9. Rd1 {[%emt 0:01:01]} a6 {[%emt 0:04:24] [#] White must now prevent ...e5.} 10. Be2 {[%emt 0:00:08]} h6 {[%emt 0:01:22]} 11. e5 {[%emt 0:03:41]} dxe5 {[%emt 0:08:01]} 12. Nxe5 {[%emt 0:00:43]} Qa5 {[%emt 0:07:42]} (12... Nxe5 $11 13. Qxe5 Bd7) 13. Nc4 {[%emt 0:06:10] White has more active pieces. The black rooks are passive.} Qf5 {[%emt 0:04:36]} 14. Qd3 $36 {[%emt 0:12:05][%mdl 2048] White is in control.} Qxd3 {[%emt 0:21:40]} 15. Rxd3 {[%emt 0:00:40]} Nc5 {[%emt 0:02:28]} 16. Rd1 {[%emt 0:00:34]} g5 {[%emt 0:12:08] [#]} (16... e5 $16) 17. h4 $1 {[%emt 0:03:45][%mdl 512]} Nfe4 {[%emt 0:02:16]} 18. Nxe4 {[%emt 0:01:00]} Nxe4 {[%emt 0:00:09]} 19. Bf3 {[%emt 0:00:17]} f5 {[%emt 0:01:04]} 20. Bxe4 {[%emt 0:01:56]} fxe4 {[%emt 0:00:08]} 21. hxg5 {[%emt 0:00:10]} hxg5 {[%emt 0:00:09]} 22. Be3 {[%emt 0:01:16]} e5 {[%emt 0:07:42]} 23. Nb6 {[%emt 0:04:52]} Rb8 {[%emt 0:01:49]} 24. Nd5 {[%emt 0:20:39]} Bd8 {[%emt 0:01:20] Black is weak on the dark squares} 25. Bc5 {[%emt 0:00:12][%cal Oc5d6] aiming for Bd6!} Re8 {[%emt 0:00:39]} 26. Ba7 {[%emt 0:03:31]} Ra8 {[%emt 0:00:10]} 27. Nb6 {[%emt 0:01:45]} Bxb6 {[%emt 0:00:52]} 28. Bxb6 {[%emt 0:00:01]} Kf7 {[%emt 0:00:40]} 29. Rd5 {[%emt 0:06:10]} Bf5 {[%emt 0:00:46]} 30. Rad1 {[%emt 0:02:11]} Rac8 {[%emt 0:00:29]} 31. c3 {[%emt 0:01:39]} Rc6 {[%emt 0:04:10]} 32. Rd6 {[%emt 0:01:31]} Rxd6 {[%emt 0:01:50]} 33. Rxd6 $14 {[%emt 0:00:01][%mdl 4096] Endgame. KRB-KRB} Re6 {[%emt 0:00:25]} 34. Rd7+ {[%emt 0:01:43]} Re7 {[%emt 0:00:08]} 35. Rd8 {[%emt 0:02:09]} Rd7 {[%emt 0:03:20]} 36. Rb8 {[%emt 0:01:05]} Be6 {[%emt 0:00:27]} 37. Kh2 {[%emt 0:02:40]} Kg6 {[%emt 0:01:11]} 38. Be3 {[%emt 0:01:57]} Bb3 {[%emt 0:01:17]} 39. a5 {[%emt 0:00:45]} Bf7 {[%emt 0:01:18]} 40. Kg3 {[%emt 0:01:40]} Kf5 {[%emt 0:01:06]} 41. Rc8 {[%emt 0:32:19]} Kf6 {[%emt 0:31:49]} 42. b4 {[%emt 0:05:32]} Be6 {[%emt 0:02:43]} 43. c4 {[%emt 0:11:33]} Rd3 {[%emt 0:03:05]} 44. Rf8+ {[%emt 0:00:00]} Kg6 {[%emt 0:00:00]} 45. Rb8 {[%emt 0:00:00]} Bxc4 {[%emt 0:00:00]} 46. Rxb7 {[%emt 0:00:00]} Rb3 {[%emt 0:00:00]} 47. Rb6+ {[%emt 0:00:00]} Kf5 {[%emt 0:00:00]} 48. Kh3 {[%emt 0:00:00][%csl Gh3][%cal Rg2g4]} Be2 {[%emt 0:00:00]} 49. Kh2 {[%emt 0:00:00]} Rc3 {[%emt 0:00:00]} 50. Rb8 {[%emt 0:00:00]} Rc6 {[%emt 0:00:00]} 51. Bc5 {[%emt 0:00:00]} Kg4 {[%emt 0:00:00]} 52. Re8 {[%emt 0:00:00]} Rh6+ {[%emt 0:00:00]} 53. Kg1 {[%emt 0:00:00]} Kf5 {[%emt 0:00:00]} 54. Be3 {[%emt 0:00:00]} Bd3 {[%emt 0:00:00]} 55. Rf8+ {[%emt 0:00:00]} Kg4 {[%emt 0:00:00]} 56. Rg8 {[%emt 0:00:00]} Rh5 {[%emt 0:00:00] The position is equal.} 57. Bd2 {[%emt 0:00:00]} Kf5 {[%emt 0:00:00]} 58. Rf8+ {[%emt 0:00:00]} Ke6 {[%emt 0:00:00]} 59. Rc8 {[%emt 0:00:41]} g4 {[%emt 0:00:00]} 60. Rc6+ {[%emt 0:02:23] White really could win this.   Weighted Error Value: White=0.06 (flawless) /Black=0.04 (flawless) .  Mistake:       	---       	Black=2      Inaccurate:     	White=2     	---        OK:         	White=16    	Black=36     Best:        	---       	Black=2} 1/2-1/2

[Event "WSTCC-50 2024"]
[Site "Krakow"]
[Date "2024.07.02"]
[Round "1.1"]
[White "Belakovskaia, Anjelina"]
[Black "Mitchell, Martin"]
[Result "1-0"]
[ECO "B07"]
[WhiteElo "2171"]
[BlackElo "2159"]
[Annotator "RC"]
[PlyCount "87"]
[EventDate "2024.07.01"]
[EventType "team-tourn"]
[EventCountry "POL"]
[SourceTitle "playchess.com"]
[Source "ChessBase"]
[SourceQuality "1"]
[TimeControl "40/5400+30:1800+30"]

1. e4 {[%emt 0:00:04]} d6 {[%emt 0:00:36]} 2. d4 {[%emt 0:00:12]} Nf6 {[%emt 0:00:32]} 3. Nc3 {[%emt 0:00:29]} g6 {[%emt 0:00:18]} 4. f3 {[%emt 0:00:23]} c6 {[%emt 0:00:44]} 5. Be3 {[%emt 0:00:28]} Nbd7 {[%emt 0:01:32]} 6. Qd2 {[%emt 0:06:01]} b5 {[%emt 0:00:49]} 7. g4 {[%emt 0:00:53]} h5 {[%emt 0:08:53]} 8. g5 {[%emt 0:00:31]} Nh7 {[%emt 0:00:06]} 9. d5 {[%emt 0:09:06]} b4 {[%emt 0:24:58]} 10. dxc6 {[%emt 0:20:45]} bxc3 {[%emt 0:14:07]} 11. cxd7+ {[%emt 0:00:06]} Bxd7 {[%emt 0:00:31]} 12. Qxc3 {[%emt 0:00:02]} e5 {[%emt 0:02:37]} 13. h4 {[%emt 0:01:25]} Rc8 {[%emt 0:02:57]} 14. Qd2 {[%emt 0:02:36]} Qc7 {[%emt 0:02:40]} 15. O-O-O {[%emt 0:07:17]} Be7 {[%emt 0:01:57]} 16. Ne2 {[%emt 0:04:23]} O-O {[%emt 0:00:38]} 17. Nc3 {[%emt 0:01:48]} Be6 {[%emt 0:01:32]} 18. Ba6 {[%emt 0:15:51]} Rb8 {[%emt 0:01:49]} 19. Nd5 {[%emt 0:00:05]} Bxd5 {[%emt 0:01:14]} 20. Qxd5 {[%emt 0:00:39]} Kg7 {[%emt 0:00:47]} 21. Rd3 {[%emt 0:03:05]} f6 {[%emt 0:03:20]} 22. Rc3 {[%emt 0:01:52]} Qd7 {[%emt 0:01:34]} 23. Qc6 {[%emt 0:12:36]} Qe6 {[%emt 0:05:43]} 24. Bc4 {[%emt 0:01:16]} Qc8 {[%emt 0:00:14]} 25. Qxc8 {[%emt 0:01:12]} Rbxc8 {[%emt 0:00:50]} 26. gxf6+ {[%emt 0:00:37]} Rxf6 {[%emt 0:04:08]} 27. Rh3 {[%emt 0:06:22]} a5 {[%emt 0:05:06]} 28. a3 {[%emt 0:00:02]} Rff8 {[%emt 0:00:48]} 29. Kd2 {[%emt 0:01:20]} Rb8 {[%emt 0:02:18]} 30. Rb3 {[%emt 0:02:03]} Rxb3 {[%emt 0:03:53]} 31. Bxb3 {[%emt 0:00:01]} g5 {[%emt 0:00:44]} 32. hxg5 {[%emt 0:00:40]} Kg6 {[%emt 0:01:35]} 33. Be6 {[%emt 0:00:45]} Nxg5 {[%emt 0:01:36]} 34. Bf5+ {[%emt 0:00:12]} Kf6 {[%emt 0:01:48]} 35. Rxh5 {[%emt 0:00:08]} Nxf3+ {[%emt 0:00:07]} 36. Kd3 {[%emt 0:00:30]} Ne1+ {[%emt 0:01:20]} 37. Ke2 {[%emt 0:01:17]} Nxc2 {[%emt 0:00:40]} 38. Bg5+ {[%emt 0:00:10]} Kg7 {[%emt 0:00:18]} 39. Bxe7 {[%emt 0:00:39]} Nd4+ {[%emt 0:00:10]} 40. Ke3 {[%emt 0:00:39]} Rb8 {[%emt 0:00:29]} 41. Bxd6 {[%emt 0:31:15]} Rb3+ {[%emt 0:30:08]} 42. Kd2 {[%emt 0:00:35]} Rxb2+ {[%emt 0:00:29]} 43. Kc3 {[%emt 0:00:28]} Rb3+ {[%emt 0:02:17]} 44. Kc4 {[%emt 0:00:16]} 1-0

[Event "WSTCC-50 2024"]
[Site "Krakow"]
[Date "2024.07.02"]
[Round "1.2"]
[White "Becker, Rogerio Sperb"]
[Black "Shabalov, Alexander"]
[Result "0-1"]
[ECO "A15"]
[WhiteElo "2053"]
[BlackElo "2467"]
[Annotator "TA"]
[PlyCount "64"]
[EventDate "2024.07.01"]
[EventType "team-tourn"]
[EventCountry "POL"]
[SourceTitle "playchess.com"]
[Source "ChessBase"]
[SourceQuality "1"]
[TimeControl "40/5400+30:1800+30"]

{[%evp 10,64,33,14,16,8,24,16,20,22,18,7,23,13,0,0,17,0,0,0,14,0,40,15,28,14,10,8,9,-5,-20,-39,24,-53,-44,-38,-81,-350,-384,-569,-578,-500,-500,-643,-641,-1222,-1292,-1264,-893,-1260,-1222,-6717,-914,-29994,-29995,-29997,-29998]} 1. c4 {[%emt 0:00:03]} Nf6 {[%emt 0:00:10]} 2. g3 {[%emt 0:00:30]} e6 {[%emt 0:01:13]} 3. Bg2 {[%emt 0:00:36]} d5 {[%emt 0:00:06]} 4. Nf3 {[%emt 0:00:59]} Bd6 {[%emt 0:00:39]} 5. O-O {[%emt 0:01:24]} O-O {[%emt 0:00:14]} 6. b3 {[%emt 0:05:38]} b6 {[%emt 0:00:35]} 7. cxd5 {[%emt 0:02:30]} exd5 {[%emt 0:00:07]} 8. Nc3 {[%emt 0:03:13]} Re8 {[%emt 0:01:00] The position is equal.} 9. Bb2 {[%emt 0:05:54]} Bb7 {[%emt 0:06:39]} 10. Rc1 {[%emt 0:03:09]} a6 {[%emt 0:01:37]} 11. d4 {[%emt 0:03:28]} Nbd7 {[%emt 0:00:12]} 12. e3 {[%emt 0:01:18]} Rc8 {[%emt 0:06:10]} 13. Ne1 {[%emt 0:05:55]} Ne4 {[%emt 0:03:42]} 14. Nd3 {[%emt 0:04:55]} Ndf6 {[%emt 0:01:31]} 15. b4 {[%emt 0:11:21]} c6 {[%emt 0:11:45]} 16. a3 {[%emt 0:02:45]} a5 {[%emt 0:04:48]} 17. bxa5 {[%emt 0:16:07]} Ba6 {[%emt 0:01:31]} (17... bxa5 {simplifies} 18. Nxe4 Nxe4 19. Re1 Ba6) 18. axb6 Qxb6 {[#] ...Bxd3 is the strong threat.} 19. Rb1 {[%emt 0:07:27]} Qa5 {[%emt 0:01:05]} 20. Qc2 {[%emt 0:01:26]} c5 {[%emt 0:02:23]} (20... Ng4 $1 $15) 21. Rfc1 {[%emt 0:05:14]} (21. dxc5 $11 Bxc5 22. Nxc5 (22. Nxd5 $2 Nxd5 23. Ne5 Nxe3 $19) 22... Rxc5 23. Rfc1) 21... cxd4 $15 {[%emt 0:10:05]} 22. exd4 {[%emt 0:00:14][%cal Od3b4]} Ng4 {[%emt 0:00:13]} 23. Bxe4 $2 {[%emt 0:04:47][%mdl 8192] White does not recover from this.} (23. Re1 $17) 23... dxe4 $19 {[%emt 0:00:26]} 24. Ne5 {[%emt 0:04:48]} (24. Nc5 $142 Bxc5 25. h3 Bxd4 26. hxg4) 24... Bxe5 {[%emt 0:02:17]} 25. dxe5 {[%emt 0:00:20] White is weak on the light squares} Bd3 {[%emt 0:00:07]} (25... Rxe5 26. Qa4 $15) 26. Qd1 {[%emt 0:01:58]} Nxe5 {[%emt 0:00:28]} 27. Ra1 {[%emt 0:01:58]} Nf3+ {[%emt 0:06:04]} 28. Kg2 {[%emt 0:00:49]} Qh5 {[%emt 0:00:24][%csl Gf3][%cal Rh5h2] [#]} 29. h3 {[%emt 0:01:01]} Rc6 {[%emt 0:00:14]} 30. Qa4 {[%emt 0:02:34]} Rce6 {[%emt 0:14:19]} (30... Ng5 $142 31. h4 Qf3+ 32. Kg1 Nh3+ (32... e3 $2 33. hxg5 Qxf2+ 34. Kh1 $19) 33. Kh2 Nf4 (33... Qxf2+ $2 34. Kxh3 Rce6 35. Nd5 $19) 34. gxf4 Qxf2+ 35. Kh3 e3 36. Ne4 Bxe4 (36... Qxb2 $2 {loses.} 37. Qxc6 Qb8 38. Ng3 $18) 37. Qxe4 Rxe4 38. Rf1 Qxb2 39. Rad1 Qf6 (39... Qxa3 $2 40. Rd8+ $19) 40. Rf3 e2 (40... Rxf4 {is a self mate.} 41. Rxf4 e2 42. Rxf6 Rc3+ 43. Rd3 Rxd3+ 44. Kg2 e1=Q 45. Rf2 Qe4+ 46. Kh2 Qxh4+ 47. Kg1 Qg3+ 48. Kf1 Rd1+ 49. Ke2 Qd3#) 41. Rb1 Qf5+ (41... e1=B 42. Rb8+) 42. Kg3 e1=Q+ (42... e1=B+ 43. Rxe1 Qg6+ 44. Kh3 Rxe1 45. Rf1 Rc3+ 46. Kh2 Qg3+ 47. Kh1 Rxf1#) (42... Rg6+ 43. Kh2 Re8 44. Rg3 Qxf4 45. Rbb3 e1=Q 46. h5 Qh4+ 47. Rh3 Qg1#) 43. Rxe1 Rxe1 44. Kf2 Rc2+ 45. Kxe1 Qe4+ 46. Kf1 Qxf3+ 47. Kg1 Qg2#) 31. Nd1 {[%emt 0:01:33]} Ne1+ {[%emt 0:01:47]} 32. Kg1 {[%emt 0:01:04]} Qxh3 {[%emt 0:00:15] Weighted Error Value: White=1.08/Black=0.40.  Loses game:     	White=1     	---        Mistake:       	White=2     	Black=1      Inaccurate:     	White=1     	Black=1      OK:         	White=6     	Black=9      Best:        	---       	Black=2} 0-1

[Event "WSTCC-50 2024"]
[Site "Krakow"]
[Date "2024.07.02"]
[Round "1.2"]
[White "Hulme, William"]
[Black "Marinello, Beatriz"]
[Result "0-1"]
[ECO "E46"]
[WhiteElo "1941"]
[BlackElo "2109"]
[Annotator "NA RC"]
[PlyCount "55"]
[EventDate "2024.07.01"]
[EventType "team-tourn"]
[EventCountry "POL"]
[SourceTitle "playchess.com"]
[Source "ChessBase"]
[SourceQuality "1"]
[TimeControl "40/5400+30:1800+30"]

1. d4 {[%emt 0:00:08]} Nf6 {[%emt 0:00:16]} 2. c4 {[%emt 0:00:09]} e6 {[%emt 0:00:18]} 3. Nc3 {[%emt 0:00:19]} Bb4 {[%emt 0:01:56]} 4. e3 {[%emt 0:00:08]} O-O {[%emt 0:00:30]} 5. Nge2 {[%emt 0:00:10]} b6 {[%emt 0:01:43]} 6. a3 {[%emt 0:00:12]} Be7 {[%emt 0:00:26]} 7. d5 {[%emt 0:04:13]} Ba6 {[%emt 0:04:41]} 8. Nd4 {[%emt 0:06:38]} c5 {[%emt 0:07:06]} 9. Ndb5 {[%emt 0:04:54]} exd5 {[%emt 0:07:11]} 10. cxd5 {[%emt 0:02:55]} d6 {[%emt 0:00:17]} 11. a4 {[%emt 0:03:23]} Nbd7 {[%emt 0:02:53]} 12. Be2 {[%emt 0:02:58]} Re8 {[%emt 0:06:53]} 13. O-O {[%emt 0:00:39]} Bf8 {[%emt 0:01:04]} 14. Qc2 {[%emt 0:08:38]} Bb7 {[%emt 0:02:26]} 15. e4 {[%emt 0:02:29]} a6 {[%emt 0:01:53]} 16. Na3 {[%emt 0:00:12]} Qe7 {[%emt 0:02:16]} 17. Re1 {[%emt 0:16:53]} h6 {[%emt 0:02:26]} 18. h3 {[%emt 0:08:32]} b5 {[%emt 0:09:49]} 19. axb5 {[%emt 0:00:53]} axb5 {[%emt 0:05:23]} 20. Ncxb5 {[%emt 0:07:59]} Qxe4 {[%emt 0:00:25]} 21. Qxe4 {[%emt 0:05:07]} Rxe4 {[%emt 0:00:47]} 22. Bd2 {[%emt 0:02:15]} Rb8 {[%emt 0:11:38]} 23. Ba5 {[%emt 0:06:22]} Nxd5 {[%emt 0:08:01]} 24. Bf3 {[%emt 0:00:12]} Ra4 {[%emt 0:02:39]} 25. Nc7 {[%emt 0:02:05]} Rxa5 {[%emt 0:01:13]} 26. Nxd5 {[%emt 0:02:38]} Ne5 {[%emt 0:01:56]} 27. Rad1 {[%emt 0:04:58]} Ra4 {[%emt 0:07:23]} 28. Nb1 0-1

[Event "WSTCC-50 2024"]
[Site "Krakow"]
[Date "2024.07.02"]
[Round "1.2"]
[White "Narva, Regina"]
[Black "Paschall, William"]
[Result "0-1"]
[ECO "B00"]
[WhiteElo "1921"]
[BlackElo "2312"]
[Annotator "TA"]
[PlyCount "118"]
[EventDate "2024.07.01"]
[EventType "team-tourn"]
[EventCountry "POL"]
[SourceTitle "playchess.com"]
[Source "ChessBase"]
[SourceQuality "1"]
[TimeControl "40/5400+30:1800+30"]

{[%evp 9,118,39,27,21,35,20,20,24,22,13,20,0,12,0,0,0,3,-15,17,0,4,0,13,12,23,0,0,1,9,0,0,0,0,0,0,-6,8,-11,0,0,0,-5,0,-19,-13,-13,-25,-17,-16,-19,-14,-17,-14,-16,-14,-17,-22,-79,-81,-74,-74,-74,-74,-114,-113,-111,-106,-106,-112,-104,-111,-189,-167,-179,-186,-181,-136,-132,-97,-134,-9,-356,-264,-266,-266,-272,-272,-348,-344,-287,-272,-408,-398,-440,-440,-1174,-1141,-931,-919,-894,-869,-2024,-1726,-1439,-1356,-29977,-29977,-29978,-29979,-29985,-29978]} 1. e4 {[%emt 0:00:11]} d6 {[%emt 0:01:35]} 2. d4 {[%emt 0:01:08]} a6 {[%emt 0:00:22]} 3. Nc3 {[%emt 0:01:32]} Nf6 {[%emt 0:01:31]} 4. Be2 {[%emt 0:02:45]} e5 {[%emt 0:05:07]} 5. dxe5 {[%emt 0:05:17]} dxe5 {[%emt 0:00:12]} 6. Qxd8+ {[%emt 0:01:17]} Kxd8 {[%emt 0:00:17]} 7. Bg5 {[%emt 0:01:27]} Be6 {[%emt 0:03:48]} 8. O-O-O+ {[%emt 0:04:57] The position is equal.} Kc8 {[%emt 0:03:17]} 9. f4 {[%emt 0:12:59]} exf4 $1 {[%emt 0:08:38]} 10. e5 {[%emt 0:13:11]} Nfd7 {[%emt 0:06:19]} 11. Bxf4 {[%emt 0:00:47]} Nc6 {[%emt 0:01:02]} 12. Nf3 {[%emt 0:01:43]} h6 {[%emt 0:01:00]} 13. h4 {[%emt 0:13:00]} g6 {[%emt 0:04:04]} 14. Rhe1 {[%emt 0:07:22]} Bg7 {[%emt 0:02:26]} 15. Bf1 {[%emt 0:06:13]} Re8 {[%emt 0:04:40]} 16. Nd5 {[%emt 0:04:36]} Ne7 {[%emt 0:10:14]} 17. Bc4 {[%emt 0:04:31]} Nxd5 {[%emt 0:05:09]} 18. Bxd5 {[%emt 0:00:13]} Nf8 {[%emt 0:03:56]} 19. Bg3 {[%emt 0:01:16]} Bxd5 {[%emt 0:07:33]} 20. Rxd5 {[%emt 0:00:07]} Rd8 {[%emt 0:03:03]} 21. Red1 {[%emt 0:01:30]} Rxd5 {[%emt 0:00:40]} 22. Rxd5 {[%emt 0:00:06]} Ne6 {[%emt 0:02:59]} 23. Rd3 {[%emt 0:02:45]} Nc5 {[%emt 0:08:46]} 24. Rd4 {[%emt 0:00:44]} Ne6 {[%emt 0:00:34] Dodges Rf4} 25. Rd3 {[%emt 0:00:16]} a5 {[%emt 0:00:33]} 26. Nd4 {[%emt 0:01:58]} Kd7 {[%emt 0:01:07]} 27. Nf5+ {[%emt 0:02:42]} Ke8 {[%emt 0:00:16]} 28. Nxg7+ {[%emt 0:00:38]} Nxg7 $11 {[%emt 0:00:06][%mdl 4096] Endgame. KRB-KRN} 29. Bf4 {[%emt 0:00:29]} h5 {[%emt 0:02:11]} 30. Bg5 {[%emt 0:02:20]} Ne6 {[%emt 0:00:12]} 31. Bf6 {[%emt 0:00:11]} a4 {[%emt 0:01:22]} 32. Kd1 {[%emt 0:01:32]} Ra5 {[%emt 0:01:50]} 33. c4 {[%emt 0:00:49]} (33. c3 $11 {remains equal.}) 33... Rc5 $17 {[%emt 0:02:36]} 34. b3 {[%emt 0:02:46]} axb3 35. axb3 {[%emt 0:00:54]} Ra5 {[%emt 0:00:14]} 36. Rd2 {[%emt 0:01:05]} Ra3 {[%emt 0:02:15]} 37. Kc2 {[%emt 0:01:26]} Ra2+ {[%emt 0:04:09]} 38. Kc3 {[%emt 0:00:12]} Rxd2 {[%emt 0:00:38]} 39. Kxd2 {[%emt 0:00:05] KB-KN} Nc5 $1 {[%emt 0:02:03]} 40. Kc2 {[%emt 0:00:18] [#]} (40. Kc3 $17) 40... Kd7 $1 $19 {[%emt 0:00:28]} 41. b4 {[%emt 0:31:24]} Ne4 {[%emt 0:31:04] And now ...Nxf6 would win.} 42. Bg7 {[%emt 0:01:33]} ({Don't blunder} 42. Kd3 $2 Nxf6 43. exf6 Ke6 $19) 42... Ke6 {[%emt 0:00:00]} 43. Kd3 {[%emt 0:00:00] [#]} Kf5 {[%emt 0:00:00]} 44. Ke3 {[%emt 0:00:00]} Ng3 {[%emt 0:00:00]} ({Black should try} 44... g5 $17 45. hxg5 Nxg5) 45. Kd4 $2 {[%emt 0:00:00][%mdl 8192] White does not recover from this.} (45. Kf3 $1 $11 {and White stays safe.} Ne4 46. c5) 45... Ne2+ {[%emt 0:00:00]} 46. Ke3 {[%emt 0:00:00]} Nf4 {[%emt 0:00:00]} 47. g3 {[%emt 0:00:00]} Ne6 {[%emt 0:00:00]} 48. Bf6 {[%emt 0:00:00]} Kg4 {[%emt 0:00:00]} 49. Kf2 {[%emt 0:00:00]} c6 {[%emt 0:00:00]} 50. Be7 {[%emt 0:00:56]} (50. b5 {was the only chance.}) 50... Kf5 {[%emt 0:00:00]} 51. Bd6 {[%emt 0:00:25]} Ke4 {[%emt 0:00:00]} 52. b5 {[%emt 0:00:40]} (52. Ke2 $142) 52... c5 {[%emt 0:00:00] ...Kd3 is the strong threat.} 53. Ke2 {[%emt 0:00:25]} Kd4 {[%emt 0:00:00]} 54. Kf3 {[%emt 0:00:44]} Kxc4 {[%emt 0:00:00]} 55. g4 {[%emt 0:01:04]} hxg4+ {[%emt 0:00:00]} 56. Kxg4 {[%emt 0:00:06]} Kxb5 {[%emt 0:00:00] ( -> ...c4)} 57. h5 {[%emt 0:00:06]} gxh5+ {[%emt 0:00:00] Black mates.} 58. Kf5 {[%emt 0:00:11]} h4 {[%emt 0:00:00]} 59. Kf6 {[%emt 0:00:04]} h3 {[%emt 0:00:00] Weighted Error Value: White=0.54/Black=0.08 (flawless) .  Loses game:     	White=1     	---        Mistake:       	White=4     	Black=1      Inaccurate:     	White=2     	Black=1      OK:         	White=17    	Black=24     Best:        	White=2     	Black=5      Strong:       	---       	Black=2} 0-1